bitfinex/quotes_ETHUSD_20220117
["timestamp","ask_amount","ask_price","bid_price","bid_amount"]
[1642389390385,1.23205882,3323.3,3323.0,0.0073895]
[1642389390889,1.23205882,3323.3,3323.0,2.57573814]
[1642389391087,0.00113684,3323.2,3323.1,2.57905677]
[1642389391286,0.00113684,3323.2,3323.0,2.57573814]
[1642389392591,0.00113684,3323.2,3322.7,2.57573814]
[1642389393043,0.00113684,3323.2,3322.8,0.00113685]
[1642389395233,0.00113684,3323.2,3322.7,0.00170527]
[1642389395434,1.47031556,3322.8,3322.7,0.00170527]
[1642389396334,0.00113684,3323.2,3322.7,2.60830035]
[1642389396538,0.00113684,3323.2,3322.7,0.00170527]
[1642389396986,0.00113684,3323.2,3322.6,0.0022737]
[1642389397185,0.00113684,3323.2,3322.6,2.57801184]
[1642389397384,1.24261226,3323.2,3322.7,2.60283277]
[1642389397583,1.24261226,3323.2,3323.0,0.01098034]
[1642389399287,1.24261226,3323.2,3323.1,2.57573814]
[1642389399687,1.24261226,3323.2,3323.1,5.23583937]
[1642389399892,1.24261226,3323.2,3323.1,2.57573814]
[1642389400756,0.00113684,3323.2,3323.1,5.29793751]
[1642389402056,0.00113684,3323.2,3323.1,2.57573814]
[1642389402257,0.00113684,3323.2,3323.1,5.24401897]
[1642389402456,0.00113684,3323.2,3323.1,2.57573814]
[1642389402656,0.00113684,3323.2,3323.1,5.26924895]
[1642389402956,0.00113684,3323.2,3323.1,5.30004043]
[1642389403357,0.00113684,3323.2,3323.1,2.57573814]
[1642389404156,0.00113684,3323.2,3323.1,5.25650605]
[1642389404398,0.00113684,3323.2,3323.1,2.57573814]
[1642389405995,0.00113684,3323.2,3323.0,0.01098034]
[1642389407596,0.00113684,3323.2,3323.1,2.57562589]
[1642389409938,0.00113684,3323.2,3323.0,0.01098034]
[1642389410943,0.00113684,3323.2,3323.1,2.57554387]
[1642389411538,0.00113684,3323.2,3323.1,5.26462828]
[1642389411801,0.00113684,3323.2,3323.1,2.57554387]
[1642389411992,0.00113684,3323.2,3323.1,5.25674943]
[1642389412196,0.00113684,3323.2,3323.1,2.57554387]
[1642389412792,0.00113684,3323.2,3323.1,5.2647537]
[1642389413394,0.00113684,3323.2,3323.1,2.57554387]
[1642389413692,0.00113684,3323.2,3323.1,5.25951602]
[1642389413893,0.00113684,3323.2,3323.1,2.57554387]
[1642389414094,0.00113684,3323.2,3323.1,5.24572153]
[1642389414493,0.00113684,3323.2,3323.1,2.57554387]
[1642389414697,0.00113684,3323.2,3323.1,5.25321903]
[1642389414895,0.00113684,3323.2,3323.1,2.57554387]
[1642389415098,0.00113684,3323.2,3323.1,5.23874275]
[1642389415296,0.00113684,3323.2,3323.1,2.57554387]
[1642389416136,0.00113684,3323.2,3323.1,5.25323338]
[1642389416338,0.00113684,3323.2,3323.1,2.57554387]
[1642389416637,0.00113684,3323.2,3323.1,5.27183592]
[1642389416840,0.00113684,3323.2,3323.1,2.57554387]
[1642389417036,0.00113684,3323.2,3323.1,5.25148853]
[1642389417240,0.00113684,3323.2,3323.1,2.57554387]
[1642389417437,0.00113684,3323.2,3323.1,5.24660392]
[1642389417638,0.00113684,3323.2,3323.1,2.57554387]
[1642389418538,0.00113684,3323.2,3323.1,5.24788339]
[1642389418739,0.00113684,3323.2,3323.1,2.57554387]
[1642389418938,0.00113684,3323.2,3323.1,5.30406699]
[1642389419143,0.00113684,3323.2,3323.1,2.57554387]
[1642389420404,0.00113684,3323.2,3323.1,5.268105]
[1642389420605,0.00113684,3323.2,3323.1,2.57554387]
[1642389420806,0.00113684,3323.2,3323.1,5.28384972]
[1642389421006,2.30602329,3324.0,3323.1,5.28384972]
[1642389421406,2.61170752,3324.0,3323.6,1.42559558]
[1642389421605,2.61170752,3324.0,3323.1,5.28384972]
[1642389421807,1.28028416,3323.7,3323.1,5.28384972]
[1642389422006,1.58028416,3323.7,3323.1,5.28384972]
[1642389422206,0.00341054,3323.6,3323.1,5.28384972]
[1642389422509,0.00284211,3323.5,3323.1,5.28384972]
[1642389422707,0.00284211,3323.5,3323.2,2.57554387]
[1642389422906,0.00227369,3323.4,3323.2,3.997521]
[1642389423342,0.00170527,3323.3,3323.2,3.997521]
[1642389423547,0.00170527,3323.3,3323.2,6.74321387]
[1642389423747,0.00170527,3323.3,3323.2,3.997521]
[1642389423943,0.00170527,3323.3,3323.2,1.42197713]
[1642389428011,0.00170527,3323.3,3323.2,4.14012341]
[1642389428414,2.30602329,3324.2,3323.3,9.33050851]
[1642389428612,2.30602329,3324.2,3323.4,4.01794531]
[1642389428812,2.30602329,3324.2,3323.8,1.45400699]
[1642389428813,0.00454738,3324.1,3323.8,1.45400699]
[1642389429013,0.00454738,3324.1,3323.9,2.68581467]
[1642389429214,0.00397896,3324.0,3323.9,3.71481467]
[1642389432451,0.00397896,3324.0,3323.9,7.96481467]
[1642389432855,0.00397896,3324.0,3323.9,3.71481467]
[1642389433051,0.00397896,3324.0,3323.9,6.21847467]
[1642389433254,0.00397896,3324.0,3323.9,14.30247467]
[1642389433953,0.00397896,3324.0,3323.9,13.30247467]
[1642389434154,0.00397896,3324.0,3323.9,14.30247467]
[1642389434595,0.00397896,3324.0,3323.9,15.48527467]
[1642389434796,0.00397896,3324.0,3323.9,16.30782637]
[1642389435196,2.30602329,3325.1,3324.4,0.75176]
[1642389435400,2.30602329,3325.1,3324.5,2.67448339]
[1642389435596,0.00568424,3325.0,3324.5,2.67448339]
[1642389435797,0.00568424,3325.0,3324.7,1.40781939]
[1642389435996,0.00511581,3324.9,3324.3,4.01236352]
[1642389436397,0.00454739,3324.8,3324.3,4.01236352]
[1642389436804,3.62894516,3325.3,3324.3,4.01236352]
[1642389436805,0.00397896,3324.7,3324.3,4.01236352]
[1642389436998,0.00397896,3324.7,3324.4,1.34914209]
[1642389437198,0.00341054,3324.6,3324.4,1.34914209]
[1642389437600,1.32292187,3325.3,3324.5,2.60188904]
[1642389437800,2.30602329,3325.4,3324.5,2.60188904]
[1642389438071,0.00682108,3325.2,3324.5,2.60188904]
[1642389438455,0.00625266,3325.1,3324.5,2.60188904]
[1642389438856,0.00568424,3325.0,3324.4,1.34914209]
[1642389439256,0.00511581,3324.9,3324.4,1.34914209]
[1642389439656,0.00454739,3324.8,3324.4,1.34914209]
[1642389440057,0.00397896,3324.7,3324.4,1.34914209]
[1642389440458,0.00341054,3324.6,3324.5,2.61071417]
[1642389442493,0.00341054,3324.6,3324.5,1.50147391]
[1642389442693,0.00341054,3324.6,3324.5,4.09890893]
[1642389442899,0.00341054,3324.6,3324.5,1.50147391]
[1642389444695,0.00341054,3324.6,3324.4,1.34914209]
[1642389445096,0.00284212,3324.5,3324.4,1.34914209]
[1642389450915,0.00284212,3324.5,3324.4,4.01151935]
[1642389451122,0.00284212,3324.5,3324.4,1.34914209]
[1642389452015,0.00284212,3324.5,3324.4,4.01392946]
[1642389452217,0.00284212,3324.5,3324.4,1.34914209]
[1642389453247,0.00284212,3324.5,3324.4,3.99233568]
[1642389453448,0.00284212,3324.5,3324.4,1.34914209]
[1642389455853,0.00284212,3324.5,3324.4,4.02884513]
[1642389456653,0.00284212,3324.5,3324.4,1.34914209]
[1642389461772,0.00284212,3324.5,3324.4,3.96443052]
[1642389462171,0.00284212,3324.5,3324.4,1.34914209]
[1642389464499,0.00284212,3324.5,3324.4,3.95654221]
[1642389464700,0.00284212,3324.5,3324.4,3.95665517]
[1642389464899,0.00284212,3324.5,3324.4,7.80665517]
[1642389465600,0.00284212,3324.5,3324.4,3.95665517]
[1642389466900,0.00284212,3324.5,3324.4,7.40665517]
[1642389467100,0.00284212,3324.5,3324.4,3.95665517]
[1642389467502,0.00284212,3324.5,3324.4,1.34914209]
[1642389467910,0.00284212,3324.5,3324.4,4.39914209]
[1642389470350,0.00284212,3324.5,3324.4,1.34914209]
[1642389472400,0.00284212,3324.5,3324.4,3.92388657]
[1642389473201,0.00284212,3324.5,3324.4,1.34914209]
[1642389474006,0.00284212,3324.5,3324.4,3.92388156]
[1642389475406,2.31879153,3325.2,3324.4,3.92388156]
[1642389475652,2.30602329,3325.1,3324.4,3.92388156]
[1642389475855,2.31227595,3325.1,3324.4,3.92388156]
[1642389476052,0.00568424,3325.0,3324.4,3.92388156]
[1642389476453,0.00511581,3324.9,3324.5,2.57473947]
[1642389476956,0.00454739,3324.8,3324.7,1.51663372]
[1642389478155,0.00454739,3324.8,3324.7,4.09137319]
[1642389480502,0.00454739,3324.8,3324.7,2.57473947]
[1642389481605,0.00454739,3324.8,3324.5,2.57473947]
[1642389481803,0.00454739,3324.8,3324.7,1.18247727]
[1642389482002,2.30602329,3325.2,3324.5,2.57473947]
[1642389482003,0.00397896,3324.7,3324.5,2.57473947]
[1642389482208,0.00454739,3324.8,3324.5,2.57473947]
[1642389482403,2.30602329,3325.2,3324.5,2.57473947]
[1642389482404,0.00341054,3324.6,3324.5,2.57473947]
[1642389482604,0.00397896,3324.7,3324.5,2.57473947]
[1642389482804,0.00341054,3324.6,3324.5,2.57473947]
[1642389484555,0.00341054,3324.6,3324.5,5.17032644]
[1642389485756,0.00341054,3324.6,3324.5,5.92209644]
[1642389486161,0.00341054,3324.6,3324.5,3.32650947]
[1642389486358,0.00341054,3324.6,3324.5,2.57473947]
[1642389487203,0.00341054,3324.6,3324.5,5.13686567]
[1642389488103,0.00341054,3324.6,3324.5,2.57473947]
[1642389488704,0.00341054,3324.6,3324.5,5.160944]
[1642389488907,0.00341054,3324.6,3324.5,2.57473947]
[1642389489307,0.00341054,3324.6,3324.5,5.1663816]
[1642389489508,0.00341054,3324.6,3324.5,6.3521316]
[1642389489708,0.00341054,3324.6,3324.5,13.9144316]
[1642389491158,0.00341054,3324.6,3324.5,8.1644316]
[1642389492461,0.00341054,3324.6,3324.5,7.1644316]
[1642389492857,0.00341054,3324.6,3324.5,6.3521316]
[1642389494060,0.00341054,3324.6,3324.5,7.3521316]
[1642389494500,0.00341054,3324.6,3324.5,7.86048947]
[1642389495106,0.00341054,3324.6,3324.5,7.77764479]
[1642389495302,0.00341054,3324.6,3324.5,2.92589479]
[1642389496304,0.00341054,3324.6,3324.5,2.49189479]
[1642389510506,0.00341054,3324.6,3324.5,5.74189479]
[1642389510715,0.00341054,3324.6,3324.5,8.35981644]
[1642389511408,0.00341054,3324.6,3324.5,2.49189479]
[1642389513065,0.00341054,3324.6,3324.5,5.06750132]
[1642389513269,2.30602329,3325.3,3324.6,0.75174]
[1642389513467,2.30602329,3325.3,3324.7,2.72242732]
[1642389513667,0.00682108,3325.2,3324.7,2.72242732]
[1642389514065,0.00625266,3325.1,3324.7,2.72242732]
[1642389514267,3.07019015,3325.7,3324.9,6.9]
[1642389514467,3.07019015,3325.7,3325.1,0.7516]
[1642389514668,0.00113685,3325.3,3325.2,3.07612175]
[1642389515067,0.00113685,3325.3,3325.2,3.51012175]
[1642389516570,0.00113685,3325.3,3325.2,4.79178683]
[1642389516817,0.00113685,3325.3,3325.2,1.71566508]
[1642389517009,0.00113685,3325.3,3325.2,6.91566278]
[1642389523360,0.00113685,3325.3,3325.2,3.85541088]
[1642389524160,0.00113685,3325.3,3325.2,1.28166508]
[1642389525106,1.11292412,3325.9,3325.2,1.28166508]
[1642389525506,0.00284211,3325.8,3325.2,1.28166508]
[1642389526006,0.00227369,3325.7,3325.2,1.28166508]
[1642389526411,0.00170527,3325.6,3325.2,1.28166508]
[1642389526811,0.00113684,3325.5,3325.2,1.28166508]
[1642389527612,0.00113684,3325.5,3324.9,2.62867]
[1642389528057,0.00113684,3325.5,3325.0,0.00170527]
[1642389529862,1.51501466,3325.4,3325.0,0.00170527]
[1642389533708,1.51501466,3325.4,3324.6,0.00397897]
[1642389534308,1.51501466,3325.4,3324.6,2.57815494]
[1642389534712,1.51501466,3325.4,3324.7,0.00341055]
[1642389535657,1.51501466,3325.4,3324.6,0.00397897]
[1642389536059,1.51501466,3325.4,3324.7,2.57417597]
[1642389536460,1.51501466,3325.4,3324.8,0.00284212]
[1642389537160,2.98262593,3325.3,3324.8,0.00284212]
[1642389537363,3.03559119,3325.3,3324.8,0.00284212]
[1642389537560,1.51501466,3325.4,3324.8,0.00284212]
[1642389540508,2.9435002,3325.3,3324.6,0.75181]
[1642389540811,2.9435002,3325.3,3324.3,3.2564]
[1642389540812,0.00227369,3325.2,3324.3,3.2564]
[1642389541013,0.00227369,3325.2,3324.0,3.51902832]
[1642389541209,0.00170527,3325.1,3324.4,0.0022737]
[1642389541512,4.26057172,3325.3,3324.4,0.0022737]
[1642389541513,1.20151272,3324.5,3324.4,0.0022737]
[1642389541709,2.09391272,3324.5,3324.4,0.0022737]
[1642389541913,2.09391272,3324.5,3324.2,0.00341054]
[1642389542409,2.39391272,3324.5,3324.2,0.00341054]
[1642389542809,2.09391272,3324.5,3324.2,0.00341054]
[1642389543257,1.20151272,3324.5,3324.2,0.00341054]
[1642389543857,1.20151272,3324.5,3323.8,0.00568424]
[1642389544157,2.9792346,3324.4,3323.6,0.00682108]
[1642389545159,1.54650195,3324.3,3323.5,0.00738951]
[1642389545360,1.36328094,3324.0,3323.5,0.00738951]
[1642389546161,1.36328094,3324.0,3323.2,0.00909478]
[1642389546662,3.15365257,3323.9,3323.2,0.00909478]
[1642389546910,1.36328094,3324.0,3323.2,0.00909478]
[1642389547213,2.98589603,3323.9,3323.2,0.00909478]
[1642389547412,1.36328094,3324.0,3323.2,0.00909478]
[1642389547607,3.03155471,3323.9,3323.2,0.00909478]
[1642389547808,1.36328094,3324.0,3323.2,0.00909478]
[1642389548007,2.99023722,3323.9,3323.2,0.00909478]
[1642389548610,3.00658535,3323.9,3323.2,0.00909478]
[1642389549818,1.49977695,3323.5,3323.2,0.00909478]
[1642389550413,1.49977695,3323.5,3323.1,0.0096632]
[1642389551162,1.4862673,3323.4,3323.1,0.0096632]
[1642389552864,5.68588315,3323.4,3323.1,0.0096632]
[1642389555823,2.5574673,3323.4,3323.1,0.0096632]
[1642389556024,1.4862673,3323.4,3323.1,0.0096632]
[1642389556225,4.51479364,3323.4,3323.1,0.0096632]
[1642389558668,1.4862673,3323.4,3323.1,0.0096632]
[1642389580424,1.4862673,3323.4,3323.0,0.01098034]
[1642389581600,1.4862673,3323.4,3322.4,1.68792087]
[1642389581801,1.12015751,3322.8,3322.4,2.44021087]
[1642389582000,1.52648351,3323.7,3322.5,0.01307374]
[1642389582001,3.97276449,3323.7,3322.5,0.01307374]
[1642389582200,1.52648351,3323.7,3322.5,0.01307374]
[1642389582401,1.52648351,3323.7,3322.5,2.62390189]
[1642389582601,1.52648351,3323.7,3322.5,2.58860536]
[1642389582900,1.52648351,3323.7,3322.6,0.01250532]
[1642389583300,1.52648351,3323.7,3322.6,2.58803694]
[1642389583301,1.43873244,3322.9,3322.6,2.58803694]
[1642389583700,1.43873244,3322.9,3322.7,0.01193689]
[1642389584100,1.43873244,3322.9,3322.7,2.58746851]
[1642389584524,1.43873244,3322.9,3322.8,0.01136847]
[1642389585325,1.43873244,3322.9,3322.4,0.01364216]
[1642389585527,1.15793852,3322.4,3322.3,0.01421059]
[1642389585728,1.18220719,3323.2,3322.3,0.01421059]
[1642389586129,1.18220719,3323.2,3322.8,2.5757294]
[1642389586524,1.18220719,3323.2,3322.9,0.01080005]
[1642389586925,1.48220719,3323.2,3322.9,0.01080005]
[1642389587325,1.18220719,3323.2,3322.9,0.01080005]
[1642389587524,1.16628458,3323.1,3322.4,0.01364216]
[1642389587727,1.48220719,3323.2,3322.4,0.01364216]
[1642389587728,1.47637182,3322.5,3322.4,0.01364216]
[1642389588578,1.47637182,3322.5,3322.2,0.01477901]
[1642389590178,1.47637182,3322.5,3321.9,0.01648428]
[1642389594226,1.51851653,3322.0,3321.9,0.01648428]
[1642389594825,1.51851653,3322.0,3321.7,0.01762113]
[1642389597485,2.55711653,3322.0,3321.7,0.01762113]
[1642389597684,2.55711653,3322.0,3321.4,0.0193264]
[1642389598285,1.47270954,3321.5,3321.4,0.0193264]
[1642389598887,11.19021514,3322.6,3321.2,0.02046325]
[1642389599086,12.37251514,3322.6,3321.2,6.20046325]
[1642389599342,12.37251514,3322.6,3321.3,2.97752114]
[1642389599529,12.85848798,3322.6,3321.3,3.11021596]
[1642389599729,4.92967284,3322.6,3321.4,0.0193264]
[1642389600128,1.11047049,3322.5,3321.9,1.52831033]
[1642389600329,1.11047049,3322.5,3321.7,0.75242]
[1642389600629,1.11047049,3322.5,3321.8,0.01705271]
[1642389600830,1.11047049,3322.5,3321.8,2.56527968]
[1642389601229,1.11047049,3322.5,3321.9,0.01648428]
[1642389601834,1.11047049,3322.5,3321.8,0.01705271]
[1642389602233,1.41047049,3322.5,3321.8,0.01705271]
[1642389602633,1.41047049,3322.5,3321.6,0.01818955]
[1642389602831,1.41047049,3322.5,3321.7,0.01762113]
[1642389603076,1.41047049,3322.5,3321.4,0.0193264]
[1642389603271,1.52392046,3321.8,3321.4,0.0193264]
[1642389603672,1.52392046,3321.8,3321.7,2.57639744]
[1642389604074,1.52392046,3321.8,3321.7,2.59401857]
[1642389604576,0.3,3322.5,3321.7,0.01762113]
[1642389605077,0.3,3322.5,3321.6,0.01818955]
[1642389605670,0.3,3322.5,3321.4,0.0193264]
[1642389605873,1.25677437,3321.9,3321.4,0.0193264]
[1642389606072,1.25677437,3321.9,3321.7,2.57636381]
[1642389606472,1.25677437,3321.9,3321.8,0.01705271]
[1642389606674,1.2558138,3321.9,3321.8,0.01705271]
[1642389607333,1.2558138,3321.9,3321.6,0.01818955]
[1642389608134,1.2558138,3321.9,3321.4,0.0193264]
[1642389609939,1.2558138,3321.9,3321.2,0.02046325]
[1642389611771,1.2558138,3321.9,3321.3,2.57655355]
[1642389611971,1.5558138,3321.9,3321.3,2.57655355]
[1642389612273,1.5558138,3321.9,3321.4,0.0193264]
[1642389612873,1.2558138,3321.9,3321.4,0.0193264]
[1642389613073,1.2558138,3321.9,3321.2,0.02046325]
[1642389614077,1.46865388,3321.8,3321.2,0.02046325]
[1642389615727,1.45062818,3321.4,3321.2,0.02046325]
[1642389616326,1.45062818,3321.4,3321.1,0.02103167]
[1642389616526,1.5425,3322.2,3321.1,0.02103167]
[1642389617227,3.27681868,3322.1,3321.0,0.02160009]
[1642389617430,1.18572071,3321.7,3321.0,0.02160009]
[1642389617630,1.18572071,3321.7,3321.1,1.19044369]
[1642389617828,1.2425,3322.2,3321.1,1.19044369]
[1642389618086,10.86772557,3322.6,3321.2,0.03309157]
[1642389618275,9.0398585,3322.6,3321.2,2.60968166]
[1642389618476,0.3,3322.5,3321.3,0.01989482]
[1642389619479,1.57532581,3322.5,3321.6,1.27437692]
[1642389619680,1.18517779,3322.3,3321.6,1.27437692]
[1642389619878,1.18517779,3322.3,3321.7,0.01762113]
[1642389622328,8.55388566,3322.6,3321.7,0.01762113]
[1642389623933,1.46039527,3322.2,3321.7,0.01762113]
[1642389625236,1.24727753,3322.5,3321.7,1.48175634]
[1642389625436,8.55388566,3322.6,3321.7,1.48175634]
[1642389625672,8.55388566,3322.6,3321.8,0.01705271]
[1642389626073,8.55388566,3322.6,3321.8,2.59329124]
[1642389626474,4.46817284,3322.7,3322.4,1.44580926]
[1642389626475,0.48597284,3322.7,3322.4,1.44580926]
[1642389627074,2.79528798,3323.2,3321.9,2.910653]
[1642389627273,2.79528798,3323.2,3322.1,0.75231]
[1642389627476,1.19395462,3322.9,3322.1,2.70652033]
[1642389627673,1.19395462,3322.9,3322.2,0.01477901]
[1642389628272,1.19395462,3322.9,3322.3,1.31154102]
[1642389628674,1.19395462,3322.9,3322.4,0.01364216]
[1642389629076,1.19395462,3322.9,3322.2,0.01477901]
[1642389629327,1.19395462,3322.9,3322.1,0.01534744]
[1642389629526,0.29309402,3322.8,3322.1,0.01534744]
[1642389629726,0.29309402,3322.8,3322.0,0.01591586]
[1642389629927,1.53285334,3322.5,3322.0,0.01591586]
[1642389630128,1.12147205,3322.4,3322.0,0.01591586]
[1642389630329,1.12147205,3322.4,3322.2,2.57605954]
[1642389630728,1.12147205,3322.4,3322.3,0.01421059]
[1642389632133,1.12147205,3322.4,3322.2,0.01477901]
[1642389632932,1.12147205,3322.4,3321.8,0.01705271]
[1642389633203,1.36347794,3321.9,3321.8,0.01705271]
[1642389633784,1.36347794,3321.9,3321.6,0.01818955]
[1642389635185,1.36347794,3321.9,3321.4,0.0193264]
[1642389639826,1.36347794,3321.9,3321.5,0.75246]
[1642389640227,1.36347794,3321.9,3321.6,0.01818955]
[1642389640674,1.36347794,3321.9,3321.6,2.63772627]
[1642389640876,1.36347794,3321.9,3321.6,0.01818955]
[1642389641078,1.36347794,3321.9,3321.7,0.01762113]
[1642389641274,1.1779,3322.4,3321.6,3.40904285]
[1642389641476,7.6137,3322.7,3321.6,3.40904285]
[1642389641675,7.6137,3322.7,3321.7,0.01762113]
[1642389642476,1.17711555,3322.4,3322.0,1.17532555]
[1642389642677,1.17711555,3322.4,3322.1,2.76972913]
[1642389642877,1.17711555,3322.4,3322.1,2.78507657]
[1642389643076,1.17711555,3322.4,3322.2,0.01477901]
[1642389643682,1.17711555,3322.4,3321.7,2.99274568]
[1642389643878,1.17711555,3322.4,3321.8,0.01705271]
[1642389644336,1.17711555,3322.4,3321.7,2.97512455]
[1642389644337,1.17711555,3322.4,3321.7,2.74217726]
[1642389644525,0.00284212,3322.3,3321.7,3.17617726]
[1642389644926,0.0022737,3322.2,3321.8,1.21417706]
[1642389645127,0.0022737,3322.2,3321.9,2.64377925]
[1642389645424,0.00170527,3322.1,3321.9,2.64377925]
[1642389645926,0.00113685,3322.0,3321.9,2.64377925]
[1642389646525,0.00113685,3322.0,3321.7,3.12294775]
[1642389646727,0.00113685,3322.0,3321.7,3.04260823]
[1642389646926,0.00113685,3322.0,3321.7,0.434]
[1642389647126,1.5190776,3321.9,3321.7,0.434]
[1642389647325,1.5190776,3321.9,3321.8,2.60707593]
[1642389647627,0.00113685,3322.0,3321.8,2.60707593]
[1642389648981,0.00113685,3322.0,3321.7,0.434]
[1642389649179,0.00113685,3322.0,3321.8,2.7321867]
[1642389649780,1.23448706,3322.0,3321.8,2.7321867]
[1642389650581,0.00113685,3322.0,3321.8,2.7321867]
[1642389650782,0.00113685,3322.0,3321.9,2.5761748]
[1642389650984,0.00113685,3322.0,3321.9,5.37382033]
[1642389656877,0.00113685,3322.0,3321.9,2.5761748]
[1642389657678,0.00113685,3322.0,3321.9,5.27220494]
[1642389657880,0.00113685,3322.0,3321.9,2.69603014]
[1642389658080,0.00113685,3322.0,3321.9,2.63448467]
[1642389658280,0.00113685,3322.0,3321.8,2.5761748]
[1642389658479,0.00113685,3322.0,3321.8,5.18394344]
[1642389658679,0.00113685,3322.0,3321.9,2.66634762]
[1642389658882,0.00113685,3322.0,3321.9,5.24252242]
[1642389659083,0.00113685,3322.0,3321.9,2.5761748]
[1642389660533,0.00113685,3322.0,3321.8,2.5761748]
[1642389661133,0.00113685,3322.0,3321.9,2.61248367]
[1642389662034,0.00113685,3322.0,3321.9,5.18865847]
[1642389662631,0.00113685,3322.0,3321.9,2.5761748]
[1642389663677,0.00113685,3322.0,3321.8,2.5761748]
[1642389664281,0.00113685,3322.0,3321.9,2.5761748]
[1642389666581,0.00113685,3322.0,3321.8,2.5761748]
[1642389666838,1.35748694,3321.9,3321.8,2.5761748]
[1642389667029,1.65748694,3321.9,3321.8,2.5761748]
[1642389667333,1.35748694,3321.9,3321.3,3.02631148]
[1642389667529,1.35748694,3321.9,3321.3,1.48245369]
[1642389667728,1.35748694,3321.9,3321.4,0.00227369]
[1642389668727,1.35748694,3321.9,3321.4,2.57885829]
[1642389668928,1.35748694,3321.9,3321.4,2.5765846]
[1642389669133,1.35748694,3321.9,3321.5,0.00170527]
[1642389669932,1.35748694,3321.9,3321.1,1.35817676]
[1642389670329,1.35748694,3321.9,3321.2,0.00341054]
[1642389671383,2.67192934,3321.9,3321.2,0.00341054]
[1642389671582,1.35748694,3321.9,3321.2,0.00341054]
[1642389672081,1.35748694,3321.9,3321.2,2.57999514]
[1642389672486,1.13737977,3321.4,3321.3,0.00284211]
[1642389672683,0.00113685,3322.0,3321.3,0.00284211]
[1642389673783,1.15021254,3321.8,3321.3,0.00284211]
[1642389673982,0.00113685,3322.0,3321.3,0.00284211]
[1642389674434,0.00113685,3322.0,3321.3,2.57942671]
[1642389674629,0.00113685,3322.0,3321.3,5.21660742]
[1642389675427,1.39833399,3321.9,3321.3,2.57942671]
[1642389675826,1.39833399,3321.9,3321.4,2.5765846]
[1642389676230,1.39833399,3321.9,3321.5,0.00170527]
[1642389676830,1.69833399,3321.9,3321.5,0.00170527]
[1642389677533,1.69833399,3321.9,3321.3,0.00284211]
[1642389678581,1.69833399,3321.9,3321.2,0.00341054]
[1642389678983,1.69833399,3321.9,3321.3,2.5765846]
[1642389679981,1.37626699,3321.4,3321.2,0.00341054]
[1642389680186,5.86683794,3322.2,3321.2,0.00341054]
[1642389680484,0.00170527,3322.1,3321.1,0.00397896]
[1642389680886,0.00113685,3322.0,3321.1,0.00397896]
[1642389681084,1.33403001,3321.8,3321.4,2.5765846]
[1642389681485,1.33403001,3321.8,3321.5,0.00170527]
[1642389682543,1.33403001,3321.8,3321.3,0.00284211]
[1642389683544,1.33403001,3321.8,3321.1,0.00397896]
[1642389683944,1.33403001,3321.8,3321.1,2.7285384]
[1642389684247,1.33403001,3321.8,3321.2,0.00341054]
[1642389684446,1.33403001,3321.8,3321.2,2.57999514]
[1642389684746,1.33403001,3321.8,3321.3,0.00284211]
[1642389686383,0.00113685,3322.0,3321.3,0.00284211]
[1642389686583,0.00113685,3322.0,3321.3,2.59409947]
[1642389686983,0.00113685,3322.0,3321.3,0.00284211]
[1642389687584,0.00113685,3322.0,3321.4,2.5765846]
[1642389687988,1.1398521,3321.9,3321.5,0.00170527]
[1642389688484,1.4398521,3321.9,3321.5,0.00170527]
[1642389688888,1.4398521,3321.9,3321.3,0.00284211]
[1642389692534,1.52460241,3321.4,3321.3,0.00284211]
[1642389692735,1.52460241,3321.4,3321.2,0.00341054]
[1642389693984,1.52460241,3321.4,3321.1,0.00397896]
[1642389695184,1.52460241,3321.4,3321.2,2.5765846]
[1642389695582,1.52460241,3321.4,3321.3,0.00284211]
[1642389695785,0.00113685,3322.0,3321.3,0.00284211]
[1642389697029,0.00113685,3322.0,3321.1,0.00397896]
[1642389697232,1.18255353,3321.8,3321.1,0.00397896]
[1642389697730,0.3,3321.7,3321.1,0.00397896]
[1642389698232,0.00113685,3322.0,3321.2,2.5765846]
[1642389698437,0.00113685,3322.0,3321.3,3.95555454]
[1642389698629,0.00113685,3322.0,3321.3,3.95839665]
[1642389699530,0.00113685,3322.0,3321.3,4.48509555]
[1642389699732,0.00113685,3322.0,3321.3,5.23755555]
[1642389700132,0.00113685,3322.0,3321.4,2.5765846]
[1642389700332,0.00113685,3322.0,3321.5,2.75134437]
[1642389700581,0.00113685,3322.0,3321.5,2.76506033]
[1642389700781,0.00113685,3322.0,3321.6,1.18747684]
[1642389700986,0.00113685,3322.0,3321.7,3.48362992]
[1642389701186,0.00113685,3322.0,3321.8,0.434]
[1642389701382,0.00113685,3322.0,3321.9,5.75081579]
[1642389701682,0.00113685,3322.0,3321.9,4.72701542]
[1642389702082,0.00113685,3322.0,3321.9,3.28205435]
[1642389702782,0.00113685,3322.0,3321.9,3.0105846]
[1642389703382,0.00113685,3322.0,3321.9,5.70593211]
[1642389704436,0.00113685,3322.0,3321.9,7.25859491]
[1642389708080,0.00113685,3322.0,3321.9,5.70593211]
[1642389716488,0.00113685,3322.0,3321.9,6.87776283]
[1642389717088,0.00113685,3322.0,3321.9,7.63001283]
[1642389718888,0.00113685,3322.0,3321.9,8.63001283]
[1642389720141,0.00113685,3322.0,3321.9,7.63001283]
[1642389721038,0.00113685,3322.0,3321.9,10.73001283]
[1642389721748,0.00113685,3322.0,3321.9,12.03001283]
[1642389721941,5.21423794,3323.2,3322.4,0.7522]
[1642389722141,5.21423794,3323.2,3322.5,3.1186119]
[1642389722343,0.00625266,3323.1,3322.5,3.1186119]
[1642389722542,0.00625266,3323.1,3322.6,0.01903325]
[1642389722742,0.00568424,3323.0,3322.6,0.434]
[1642389723189,1.2316,3323.3,3322.6,0.434]
[1642389723190,0.00511581,3322.9,3322.6,0.434]
[1642389723497,0.00454739,3322.8,3322.6,0.434]
[1642389723890,0.00397897,3322.7,3322.6,0.434]
[1642389724089,0.00397897,3322.7,3322.2,1.227]
[1642389724393,0.00341054,3322.6,3322.2,1.661]
[1642389724788,0.00284212,3322.5,3322.2,1.661]
[1642389725189,0.0022737,3322.4,3322.2,1.661]
[1642389725590,0.00170527,3322.3,3322.2,1.661]
[1642389725992,0.00170527,3322.3,3321.8,0.434]
[1642389726293,0.00113685,3322.2,3321.8,0.434]
[1642389726691,0.00341054,3322.6,3321.8,0.434]
[1642389727137,0.00284212,3322.5,3321.8,0.434]
[1642389727542,0.0022737,3322.4,3321.8,0.434]
[1642389727940,0.00170527,3322.3,3321.8,0.434]
[1642389728339,0.00113685,3322.2,3321.8,0.434]
[1642389728738,1.64007486,3322.7,3321.8,0.434]
[1642389728739,0.00341054,3322.6,3321.8,0.434]
[1642389729139,0.00284212,3322.5,3321.8,0.434]
[1642389729540,0.0022737,3322.4,3321.8,0.434]
[1642389729837,0.00170527,3322.3,3321.8,0.434]
[1642389730239,0.00113685,3322.2,3321.8,0.434]
[1642389730688,0.00511581,3322.9,3321.8,0.434]
[1642389730890,1.44591339,3322.8,3321.9,1.15428001]
[1642389731087,1.75046078,3322.8,3321.9,1.15428001]
[1642389731288,0.00397897,3322.7,3321.9,1.15428001]
[1642389731787,1.74591339,3322.8,3321.9,1.15428001]